fUST/lending_fUST_20250601
["ID","MTS","AMOUNT","RATE_DAILY","PERIOD"]
[363588005,1748777447647,-489.71765139,0.00017534,2]
[363588006,1748777447657,-444.76,0.00017534,2]
[363588007,1748777447666,-430.0,0.00017534,2]
[363588008,1748777447676,-430.0,0.00017534,2]
[363588009,1748777447685,-492.01,0.00017534,2]
[363588010,1748777447694,-2451.33,0.00017534,2]
[363588011,1748777447704,-430.0,0.00017534,2]
[363588012,1748777447713,-430.0,0.00017534,2]
[363588013,1748777447722,-430.0,0.00017534,2]
[363588014,1748777447732,-430.0,0.00017534,2]
[363588015,1748777447742,-430.0,0.00017534,2]
[363588016,1748777447752,-430.0,0.00017534,2]
[363588017,1748777447762,-555.41,0.00017534,2]
[363588018,1748777447772,-264.11485506,0.00017534,2]
[363588019,1748777447782,-2910.97,0.00017534,2]
[363588020,1748777447792,-878.25,0.00017534,2]
[363588021,1748777447801,-430.0,0.00017534,2]
[363588022,1748777447810,-430.0,0.00017534,2]
[363588023,1748777447820,-430.0,0.00017534,2]
[363588024,1748777447830,-500.0,0.00017558,2]
[363588025,1748777447839,-361.03735326,0.00017558,2]
[363588026,1748777447850,-158.71549333,0.00017558,2]
[363588027,1748777447859,-166.37612134,0.00017558,2]
[363588028,1748777447869,-160.22977576,0.00017558,2]
[363588029,1748777447879,-160.26099172,0.00017558,2]
[363588030,1748777447890,-500.0,0.00017568,2]
[363588031,1748777447899,-501.44023844,0.00017568,2]
[363588032,1748777447909,-568.42603999,0.00017568,2]
[363588033,1748777447918,-216.01084162,0.00017568,2]
[363588034,1748777447928,-500.0,0.00017568,2]
[363588035,1748777447937,-160.21270814,0.00017569,2]
[363588036,1748777447947,-500.0,0.00017569,2]
[363588037,1748777447958,-500.0,0.00017577,2]
[363588038,1748777447968,-500.0,0.00017577,2]
[363588039,1748777447978,-501.82835657,0.00017586,2]
[363588040,1748777447988,-500.0,0.00017591,2]
[363588041,1748777447999,-500.0,0.00017591,2]
[363588042,1748777448009,-500.0,0.00017591,2]
[363588043,1748777448019,-500.0,0.00017591,2]
[363588044,1748777448029,-1000.0,0.00017609,2]
[363588045,1748777448039,-1000.0,0.00017609,2]
[363588046,1748777448049,-500.0,0.00017613,2]
[363588047,1748777448059,-500.80912505,0.00017613,2]
[363588048,1748777448069,-1003.20737064,0.00017621,2]
[363588049,1748777448079,-1000.0,0.00017621,2]
[363588050,1748777448088,-1000.0,0.00017621,2]
[363588051,1748777448098,-502.35685158,0.00017621,2]
[363588052,1748777448109,-1000.0,0.00017621,2]
[363588053,1748777448119,-265.73935326,0.00017621,2]
[363588054,1748777448129,-1000.0,0.00017708,2]
[363588055,1748777448140,-1000.0,0.00017708,2]
[363588056,1748777448150,-2101.72,0.00017798,3]
[363588057,1748777448160,-1050.86,0.00017798,3]
[363588058,1748777448170,-525.44,0.00017798,3]
[363588059,1748777448180,-3132.0,0.00017808,2]
[363588060,1748777448190,-3132.0,0.00017808,2]
[363588061,1748777448199,-430.0,0.00017808,2]
[363588062,1748777448209,-430.0,0.00017808,2]
[363588063,1748777448219,-430.0,0.00017808,2]
[363588064,1748777448229,-540.48619459,0.00017808,2]
[363588065,1748777448239,-450.14059653,0.00017808,2]
[363588066,1748777448249,-430.0,0.00017808,2]
[363588067,1748777448259,-430.0,0.00017808,2]
[363588068,1748777448269,-430.0,0.00017808,2]
[363588069,1748777448279,-430.0,0.00017808,2]
[363588070,1748777448289,-430.0,0.00017808,2]
[363588071,1748777448299,-430.0,0.00017808,2]
[363588072,1748777448310,-430.0,0.00017808,2]
[363588073,1748777448319,-430.0,0.00017808,2]
[363588074,1748777448328,-430.0,0.00017808,2]
[363588075,1748777448336,-533.31389082,0.00017808,2]
[363588076,1748777448345,-430.0,0.00017808,2]
[363588077,1748777448354,-430.0,0.00017808,2]
[363588078,1748777448362,-430.0,0.00017808,2]
[363588079,1748777448372,-430.0,0.00017808,2]
[363588080,1748777448382,-430.0,0.00017808,2]
[363588081,1748777448393,-430.0,0.00017808,2]
[363588082,1748777448403,-407.22,0.00017808,2]
[363588083,1748777448413,-430.0,0.00017808,2]
[363588084,1748777448424,-430.0,0.00017808,2]
[363588085,1748777448435,-430.0,0.00017808,2]
[363588086,1748777448446,-430.0,0.00017808,2]
[363588087,1748777448456,-430.0,0.00017808,2]
[363588088,1748777448466,-430.0,0.00017808,2]
[363588089,1748777448476,-430.0,0.00017808,2]
[363588090,1748777448486,-430.0,0.00017808,2]
[363588091,1748777448497,-430.0,0.00017808,2]
[363588092,1748777448507,-430.0,0.00017808,2]
[363588093,1748777448517,-430.0,0.00017808,2]
[363588094,1748777448528,-1240.01,0.00017808,2]
[363588095,1748777448542,-430.0,0.00017808,2]
[363588096,1748777448553,-492.83,0.00017808,2]
[363588097,1748777448563,-430.0,0.00017808,2]
[363588098,1748777448575,-430.0,0.00017808,2]
[363588099,1748777448585,-3331.44,0.00017808,2]
[363588100,1748777448595,-430.0,0.00017808,2]
[363588101,1748777448605,-2976.59,0.00017808,2]
[363588102,1748777448616,-430.0,0.00017808,2]
[363588103,1748777448626,-430.0,0.00017808,2]
[363588104,1748777448637,-455.26542395,0.00017808,2]
[363588105,1748777448647,-564.38,0.00017808,2]
[363588106,1748777448658,-430.0,0.00017808,2]
[363588107,1748777448668,-1884.21,0.00017808,2]
[363588108,1748777448678,-430.0,0.00017808,2]
[363588109,1748777448688,-430.0,0.00017808,2]
[363588110,1748777448699,-430.0,0.00017808,2]
[363588111,1748777448710,-430.0,0.00017808,2]
[363588112,1748777448720,-1092.73,0.00017808,2]
[363588113,1748777448730,-260.8,0.00017808,2]
[363588114,1748777448740,-2299.95,0.00017808,2]
[363588115,1748777448750,-430.0,0.00017808,2]
[363588116,1748777448760,-430.0,0.00017808,2]
[363588117,1748777448770,-430.0,0.00017808,2]
[363588118,1748777448780,-430.0,0.00017808,2]
[363588119,1748777448791,-430.0,0.00017808,2]
[363588120,1748777448801,-722.57,0.00017808,2]
[363588121,1748777448811,-430.0,0.00017808,2]
[363588122,1748777448822,-430.0,0.00017808,2]
[363588123,1748777448832,-1226.7,0.00017808,2]
[363588124,1748777448842,-2672.42,0.00017808,2]
[363588125,1748777448852,-537.60181683,0.00017808,2]
[363588126,1748777448862,-430.0,0.00017808,2]
[363588127,1748777448871,-430.0,0.00017808,2]
[363588128,1748777448881,-430.0,0.00017808,2]
[363588129,1748777448892,-430.0,0.00017808,2]
[363588130,1748777448902,-806.49,0.00017808,2]
[363588131,1748777448912,-430.0,0.00017808,2]
[363588132,1748777448923,-430.0,0.00017808,2]
[363588133,1748777448932,-430.0,0.00017808,2]
[363588134,1748777448942,-430.0,0.00017808,2]
[363588135,1748777448951,-430.0,0.00017808,2]
[363588136,1748777448961,-430.0,0.00017808,2]
[363588137,1748777448970,-430.0,0.00017808,2]
[363588138,1748777448981,-430.0,0.00017808,2]
[363588139,1748777448991,-430.0,0.00017808,2]
[363588140,1748777449002,-430.0,0.00017808,2]
[363588141,1748777449012,-430.0,0.00017808,2]
[363588142,1748777449022,-500.0,0.00017808,2]
[363588143,1748777449032,-430.0,0.00017808,2]
[363588144,1748777449042,-476.38,0.00017808,2]
[363588145,1748777449052,-430.0,0.00017808,2]
[363588146,1748777449063,-457.31,0.00017808,2]
[363588147,1748777449073,-430.0,0.00017808,2]
[363588148,1748777449083,-430.0,0.00017808,2]
[363588149,1748777449093,-478.3,0.00017808,2]
[363588150,1748777449102,-479.36,0.00017808,2]
[363588151,1748777449112,-430.0,0.00017808,2]
[363588152,1748777449122,-430.0,0.00017808,2]
[363588153,1748777449132,-430.0,0.00017808,2]
[363588154,1748777449142,-430.0,0.00017808,2]
[363588155,1748777449151,-430.0,0.00017808,2]
[363588156,1748777449161,-1252.18,0.00017808,2]
[363588157,1748777449171,-430.0,0.00017808,2]
[363588158,1748777449181,-430.0,0.00017808,2]
[363588159,1748777449190,-748.12,0.00017808,2]
[363588160,1748777449200,-430.0,0.00017808,2]
[363588161,1748777449210,-430.0,0.00017808,2]
[363588162,1748777449220,-430.0,0.00017808,2]
[363588163,1748777449230,-430.0,0.00017808,2]
[363588164,1748777449240,-430.0,0.00017808,2]
[363588165,1748777449251,-430.0,0.00017808,2]
[363588166,1748777449262,-1768.34,0.00017808,2]
[363588167,1748777449272,-430.0,0.00017808,2]
[363588168,1748777449282,-430.0,0.00017808,2]
[363588169,1748777449291,-2721.71,0.00017808,2]
[363588170,1748777449301,-476.87,0.00017808,2]
[363588171,1748777449310,-430.0,0.00017808,2]
[363588172,1748777449320,-448.50620666,0.00017808,2]
[363588173,1748777449329,-430.0,0.00017808,2]
[363588174,1748777449339,-430.0,0.00017808,2]
[363588175,1748777449349,-430.0,0.00017808,2]
[363588176,1748777449358,-548.26,0.00017808,2]
[363588177,1748777449367,-557.94,0.00017808,2]
[363588178,1748777449377,-1242.67,0.00017808,2]
[363588179,1748777449388,-444.76,0.00017808,2]
[363588180,1748777449398,-499.44253526,0.00017808,2]
[363588181,1748777449408,-430.0,0.00017808,2]
[363588182,1748777449418,-492.01,0.00017808,2]
[363588183,1748777449428,-2451.33,0.00017808,2]
[363588184,1748777449438,-430.0,0.00017808,2]
[363588185,1748777449447,-430.0,0.00017808,2]
[363588186,1748777449457,-430.0,0.00017808,2]
[363588187,1748777449467,-430.0,0.00017808,2]
[363588188,1748777449477,-430.0,0.00017808,2]
[363588189,1748777449487,-430.0,0.00017808,2]
[363588190,1748777449497,-555.41,0.00017808,2]
[363588191,1748777449507,-2910.97,0.00017808,2]
[363588192,1748777449516,-878.25,0.00017808,2]
[363588193,1748777449526,-494.83418502,0.00017808,2]
[363588194,1748777449538,-430.0,0.00017808,2]
[363588195,1748777449548,-430.0,0.00017808,2]
[363588196,1748777449558,-1667.84722356,0.000179,2]
[363588197,1748777449568,-212.80060342,0.00018018,2]
[363588198,1748777449579,-160.0,0.0001802,2]
[363588199,1748777449588,-160.0,0.0001802,2]
[363588200,1748777449697,-423.51412927,0.0001802,2]
[363588201,1748777449707,-229.3709046,0.0001802,2]
[363588202,1748777449718,-12666.87825251,0.0001802,2]
[363588203,1748777449728,-430.0,0.00018082,2]
[363588204,1748777449738,-430.0,0.00018082,2]
[363588205,1748777449748,-470.0,0.00018082,2]
[363588206,1748777449758,-430.0,0.00018082,2]
[363588207,1748777449768,-430.0,0.00018082,2]
[363588208,1748777449778,-430.0,0.00018082,2]
[363588209,1748777449787,-430.0,0.00018082,2]
[363588210,1748777449797,-430.0,0.00018082,2]
[363588211,1748777449807,-334.72,0.00018082,2]
[363588212,1748777449817,-430.0,0.00018082,2]
[363588213,1748777449827,-430.0,0.00018082,2]
[363588214,1748777449836,-430.0,0.00018082,2]
[363588215,1748777449846,-430.0,0.00018082,2]
[363588216,1748777449856,-430.0,0.00018082,2]
[363588217,1748777449866,-430.0,0.00018082,2]
[363588218,1748777449875,-430.0,0.00018082,2]
[363588219,1748777449885,-430.0,0.00018082,2]
[363588220,1748777449895,-430.0,0.00018082,2]
[363588221,1748777449905,-430.0,0.00018082,2]
[363588222,1748777449915,-430.0,0.00018082,2]
[363588223,1748777449926,-430.0,0.00018082,2]
[363588224,1748777449935,-430.0,0.00018082,2]
[363588225,1748777449946,-430.0,0.00018082,2]
[363588226,1748777449955,-430.0,0.00018082,2]
[363588227,1748777449965,-1240.01,0.00018082,2]
[363588228,1748777449975,-430.0,0.00018082,2]
[363588229,1748777449985,-492.83,0.00018082,2]
[363588230,1748777449995,-578.10679984,0.00018082,2]
[363588231,1748777450005,-430.0,0.00018082,2]
[363588232,1748777450015,-3331.44,0.00018082,2]
[363588233,1748777450025,-430.0,0.00018082,2]
[363588234,1748777450034,-2976.59,0.00018082,2]
[363588235,1748777450045,-430.0,0.00018082,2]
[363588236,1748777450055,-430.0,0.00018082,2]
[363588237,1748777450065,-564.38,0.00018082,2]
[363588238,1748777450075,-430.0,0.00018082,2]
[363588239,1748777450085,-1884.21,0.00018082,2]
[363588240,1748777450094,-364.76314045,0.00018082,2]
[363588241,1748777450104,-430.0,0.00018082,2]
[363588242,1748777450114,-1092.73,0.00018082,2]
[363588243,1748777450124,-2299.95,0.00018082,2]
[363588244,1748777450134,-430.0,0.00018082,2]
[363588245,1748777450144,-430.0,0.00018082,2]
[363588246,1748777450154,-287.66782743,0.00018082,2]
[363588247,1748777450163,-488.40528453,0.00018082,2]
[363588248,1748777450173,-430.0,0.00018082,2]
[363588249,1748777450187,-722.57,0.00018082,2]
[363588250,1748777450197,-439.0,0.00018082,2]
[363588251,1748777450206,-430.0,0.00018082,2]
[363588252,1748777450215,-1226.7,0.00018082,2]
[363588253,1748777450225,-2672.42,0.00018082,2]
[363588254,1748777450235,-430.0,0.00018082,2]
[363588255,1748777450246,-218.78033384,0.00018082,2]
[363588256,1748777450256,-450.89389746,0.00018082,2]
[363588257,1748777450266,-430.0,0.00018082,2]
[363588258,1748777450277,-806.49,0.00018082,2]
[363588259,1748777450287,-430.0,0.00018082,2]
[363588260,1748777450298,-430.0,0.00018082,2]
[363588261,1748777450309,-430.0,0.00018082,2]
[363588262,1748777450319,-430.0,0.00018082,2]
[363588263,1748777450329,-430.0,0.00018082,2]
[363588264,1748777450339,-430.0,0.00018082,2]
[363588265,1748777450349,-430.0,0.00018082,2]
[363588266,1748777450360,-430.0,0.00018082,2]
[363588267,1748777450371,-430.0,0.00018082,2]
[363588268,1748777450380,-430.0,0.00018082,2]
[363588269,1748777450391,-476.38,0.00018082,2]
[363588270,1748777450401,-430.0,0.00018082,2]
[363588271,1748777450411,-457.31,0.00018082,2]
[363588272,1748777450421,-430.0,0.00018082,2]
[363588273,1748777450430,-478.3,0.00018082,2]
[363588274,1748777450441,-430.0,0.00018082,2]
[363588275,1748777450451,-430.0,0.00018082,2]
[363588276,1748777450462,-430.0,0.00018082,2]
[363588277,1748777450472,-1252.18,0.00018082,2]
[363588278,1748777450482,-430.0,0.00018082,2]
[363588279,1748777450492,-748.12,0.00018082,2]
[363588280,1748777450502,-430.0,0.00018082,2]
[363588281,1748777450511,-430.0,0.00018082,2]
[363588282,1748777450521,-430.0,0.00018082,2]
[363588283,1748777450533,-430.0,0.00018082,2]
[363588284,1748777450545,-1768.34,0.00018082,2]
[363588285,1748777450555,-430.0,0.00018082,2]
[363588286,1748777450564,-476.87,0.00018082,2]
[363588287,1748777450575,-2721.71,0.00018082,2]
[363588288,1748777450584,-430.0,0.00018082,2]
[363588289,1748777450594,-430.0,0.00018082,2]
[363588290,1748777450604,-430.0,0.00018082,2]
[363588291,1748777450615,-548.26,0.00018082,2]
[363588292,1748777450625,-557.94,0.00018082,2]
[363588293,1748777450634,-1242.67,0.00018082,2]
[363588294,1748777450644,-444.76,0.00018082,2]
[363588295,1748777450654,-492.01,0.00018082,2]
[363588296,1748777450664,-2451.33,0.00018082,2]
[363588297,1748777450673,-430.0,0.00018082,2]
[363588298,1748777450684,-430.0,0.00018082,2]
[363588299,1748777450694,-430.0,0.00018082,2]
[363588300,1748777450705,-430.0,0.00018082,2]
[363588301,1748777450715,-430.0,0.00018082,2]
[363588302,1748777450725,-555.41,0.00018082,2]
[363588303,1748777450735,-2910.97,0.00018082,2]
[363588304,1748777450744,-878.25,0.00018082,2]
[363588305,1748777450753,-430.0,0.00018082,2]
[363588306,1748777450762,-151.0,0.000181,2]
[363588307,1748777450772,-1667.84722348,0.00018107,2]
[363588308,1748777450782,-501.20381697,0.00018116,2]
[363588309,1748777450791,-1016.90585791,0.00018117,2]
[363588310,1748777450801,-1000.0,0.00018139,2]
[363588311,1748777450810,-500.0,0.00018139,2]
[363588312,1748777450819,-419.92773648,0.00018139,2]
[363588313,1748777450828,-1521.66822977,0.00018157,2]
[363588314,1748777450838,-1500.0,0.00018169,2]
[363588315,1748777450848,-1667.84722348,0.00018314,2]
[363588316,1748777450858,-430.0,0.00018356,2]
[363588317,1748777450868,-430.0,0.00018356,2]
[363588318,1748777450878,-430.0,0.00018356,2]
[363588319,1748777450887,-430.0,0.00018356,2]
[363588320,1748777450897,-437.02708098,0.00018356,2]
[363588321,1748777450907,-430.0,0.00018356,2]
[363588322,1748777450916,-430.0,0.00018356,2]
[363588323,1748777450926,-430.0,0.00018356,2]
[363588324,1748777450936,-283.4,0.00018356,2]
[363588325,1748777450948,-430.0,0.00018356,2]
[363588326,1748777450958,-430.0,0.00018356,2]
[363588327,1748777450967,-430.0,0.00018356,2]
[363588328,1748777450976,-430.0,0.00018356,2]
[363588329,1748777450986,-430.0,0.00018356,2]
[363588330,1748777450995,-430.0,0.00018356,2]
[363588331,1748777451005,-430.0,0.00018356,2]
[363588332,1748777451015,-430.0,0.00018356,2]
[363588333,1748777451026,-430.0,0.00018356,2]
[363588334,1748777451035,-430.0,0.00018356,2]
[363588335,1748777451047,-1240.01,0.00018356,2]
[363588336,1748777451056,-430.0,0.00018356,2]
[363588337,1748777451066,-492.83,0.00018356,2]
[363588338,1748777451076,-430.0,0.00018356,2]
[363588339,1748777451086,-3331.44,0.00018356,2]
[363588340,1748777451095,-430.0,0.00018356,2]
[363588341,1748777451105,-2976.59,0.00018356,2]
[363588342,1748777451114,-430.0,0.00018356,2]
[363588343,1748777451123,-564.38,0.00018356,2]
[363588344,1748777451133,-430.0,0.00018356,2]
[363588345,1748777451143,-1884.21,0.00018356,2]
[363588346,1748777451153,-430.0,0.00018356,2]
[363588347,1748777451163,-1092.73,0.00018356,2]
[363588348,1748777451173,-2299.95,0.00018356,2]
[363588349,1748777451183,-430.0,0.00018356,2]
[363588350,1748777451192,-430.0,0.00018356,2]
[363588351,1748777451201,-430.0,0.00018356,2]
[363588352,1748777451211,-722.57,0.00018356,2]
[363588353,1748777451220,-430.0,0.00018356,2]
[363588354,1748777451230,-1226.7,0.00018356,2]
[363588355,1748777451239,-2672.42,0.00018356,2]
[363588356,1748777451249,-430.0,0.00018356,2]
[363588357,1748777451260,-430.0,0.00018356,2]
[363588358,1748777451270,-806.49,0.00018356,2]
[363588359,1748777451279,-430.0,0.00018356,2]
[363588360,1748777451289,-430.0,0.00018356,2]
[363588361,1748777451299,-430.0,0.00018356,2]
[363588362,1748777451308,-430.0,0.00018356,2]
[363588363,1748777451318,-430.0,0.00018356,2]
[363588364,1748777451328,-430.0,0.00018356,2]
[363588365,1748777451338,-430.0,0.00018356,2]
[363588366,1748777451347,-501.36465317,0.00018356,2]
[363588367,1748777451357,-476.38,0.00018356,2]
[363588368,1748777451367,-430.0,0.00018356,2]
[363588369,1748777451377,-457.31,0.00018356,2]
[363588370,1748777451386,-430.0,0.00018356,2]
[363588371,1748777451397,-478.3,0.00018356,2]
[363588372,1748777451407,-430.0,0.00018356,2]
[363588373,1748777451416,-430.0,0.00018356,2]
[363588374,1748777451425,-430.0,0.00018356,2]
[363588375,1748777451435,-1252.18,0.00018356,2]
[363588376,1748777451445,-430.0,0.00018356,2]
[363588377,1748777451455,-748.12,0.00018356,2]
[363588378,1748777451465,-430.0,0.00018356,2]
[363588379,1748777451475,-430.0,0.00018356,2]
[363588380,1748777451485,-430.0,0.00018356,2]
[363588381,1748777451494,-430.0,0.00018356,2]
[363588382,1748777451504,-1768.34,0.00018356,2]
[363588383,1748777451514,-430.0,0.00018356,2]
[363588384,1748777451524,-476.87,0.00018356,2]
[363588385,1748777451536,-2721.71,0.00018356,2]
[363588386,1748777451546,-430.0,0.00018356,2]
[363588387,1748777451557,-537.62,0.00018356,2]
[363588388,1748777451567,-430.0,0.00018356,2]
[363588389,1748777451578,-548.26,0.00018356,2]
[363588390,1748777451588,-557.94,0.00018356,2]
[363588391,1748777451599,-1242.67,0.00018356,2]
[363588392,1748777451609,-444.76,0.00018356,2]
[363588393,1748777451621,-492.01,0.00018356,2]
[363588394,1748777451631,-2451.33,0.00018356,2]
[363588395,1748777451644,-430.0,0.00018356,2]
[363588396,1748777451654,-430.0,0.00018356,2]
[363588397,1748777451664,-430.0,0.00018356,2]
[363588398,1748777451763,-430.0,0.00018356,2]
[363588399,1748777451775,-430.0,0.00018356,2]
[363588400,1748777451785,-555.41,0.00018356,2]
[363588401,1748777451795,-2910.97,0.00018356,2]
[363588402,1748777451805,-878.25,0.00018356,2]
[363588403,1748777451815,-11355.67902676,0.00018444,2]
[363588404,1748777451826,-1667.84722348,0.00018521,2]
[363588405,1748777451836,-430.0,0.0001863,2]
[363588406,1748777451846,-430.0,0.0001863,2]
[363588407,1748777451855,-430.0,0.0001863,2]
[363588408,1748777451865,-430.0,0.0001863,2]
[363588409,1748777451875,-430.0,0.0001863,2]
[363588410,1748777451885,-430.0,0.0001863,2]
[363588411,1748777451896,-430.0,0.0001863,2]
[363588412,1748777451906,-430.0,0.0001863,2]
[363588413,1748777451916,-155.2,0.0001863,2]
[363588414,1748777451926,-430.0,0.0001863,2]
[363588415,1748777451936,-430.0,0.0001863,2]
[363588416,1748777451946,-430.0,0.0001863,2]
[363588417,1748777451956,-430.0,0.0001863,2]
[363588418,1748777451966,-430.0,0.0001863,2]
[363588419,1748777451976,-430.0,0.0001863,2]
[363588420,1748777451986,-1240.01,0.0001863,2]
[363588421,1748777451996,-430.0,0.0001863,2]
[363588422,1748777452005,-492.83,0.0001863,2]
[363588423,1748777452015,-430.0,0.0001863,2]
[363588424,1748777452025,-3331.44,0.0001863,2]
[363588425,1748777452035,-430.0,0.0001863,2]
[363588426,1748777452045,-2976.59,0.0001863,2]
[363588427,1748777452054,-430.0,0.0001863,2]
[363588428,1748777452064,-564.38,0.0001863,2]
[363588429,1748777452073,-430.0,0.0001863,2]
[363588430,1748777452083,-1884.21,0.0001863,2]
[363588431,1748777452092,-571.0,0.0001863,2]
[363588432,1748777452102,-1092.73,0.0001863,2]
[363588433,1748777452111,-2299.95,0.0001863,2]
[363588434,1748777452121,-370.0,0.0001863,2]
[363588435,1748777452130,-430.0,0.0001863,2]
[363588436,1748777452141,-722.57,0.0001863,2]
[363588437,1748777452150,-430.0,0.0001863,2]
[363588438,1748777452160,-1226.7,0.0001863,2]
[363588439,1748777452170,-2672.42,0.0001863,2]
[363588440,1748777452179,-430.0,0.0001863,2]
[363588441,1748777452189,-430.0,0.0001863,2]
[363588442,1748777452198,-806.49,0.0001863,2]
[363588443,1748777452208,-430.0,0.0001863,2]
[363588444,1748777452218,-430.0,0.0001863,2]
[363588445,1748777452228,-430.0,0.0001863,2]
[363588446,1748777452237,-150.33,0.0001863,2]
[363588447,1748777452247,-441.50999794,0.0001863,2]
[363588448,1748777452257,-430.0,0.0001863,2]
[363588449,1748777452267,-476.38,0.0001863,2]
[363588450,1748777452277,-430.0,0.0001863,2]
[363588451,1748777452287,-457.31,0.0001863,2]
[363588452,1748777452297,-430.0,0.0001863,2]
[363588453,1748777452307,-478.3,0.0001863,2]
[363588454,1748777452317,-430.0,0.0001863,2]
[363588455,1748777452327,-386.98,0.0001863,2]
[363588456,1748777452337,-244.24,0.0001863,2]
[363588457,1748777452346,-1252.18,0.0001863,2]
[363588458,1748777452356,-430.0,0.0001863,2]
[363588459,1748777452366,-748.12,0.0001863,2]
[363588460,1748777452375,-430.0,0.0001863,2]
[363588461,1748777452385,-430.0,0.0001863,2]
[363588462,1748777452396,-330.14,0.0001863,2]
[363588463,1748777452406,-430.0,0.0001863,2]
[363588464,1748777452417,-1768.34,0.0001863,2]
[363588465,1748777452426,-430.0,0.0001863,2]
[363588466,1748777452436,-476.87,0.0001863,2]
[363588467,1748777452445,-2721.71,0.0001863,2]
[363588468,1748777452454,-430.0,0.0001863,2]
[363588469,1748777452464,-430.0,0.0001863,2]
[363588470,1748777452474,-548.26,0.0001863,2]
[363588471,1748777452484,-557.94,0.0001863,2]
[363588472,1748777452494,-1242.67,0.0001863,2]
[363588473,1748777452504,-444.76,0.0001863,2]
[363588474,1748777452514,-492.01,0.0001863,2]
[363588475,1748777452522,-2451.33,0.0001863,2]
[363588476,1748777452531,-430.0,0.0001863,2]
[363588477,1748777452543,-430.0,0.0001863,2]
[363588478,1748777452552,-430.0,0.0001863,2]
[363588479,1748777452562,-430.0,0.0001863,2]
[363588480,1748777452571,-555.41,0.0001863,2]
[363588481,1748777452581,-2910.97,0.0001863,2]
[363588482,1748777452591,-878.25,0.0001863,2]
[363588483,1748777452603,-151.0,0.000187,2]
[363588484,1748777452613,-1667.84722348,0.00018728,2]
[363588485,1748777452622,-430.0,0.00018904,2]
[363588486,1748777452632,-430.0,0.00018904,2]
[363588487,1748777452641,-430.0,0.00018904,2]
[363588488,1748777452651,-430.0,0.00018904,2]
[363588489,1748777452660,-216.16,0.00018904,2]
[363588490,1748777452670,-430.0,0.00018904,2]
[363588491,1748777452680,-430.0,0.00018904,2]
[363588492,1748777452689,-384.93,0.00018904,2]
[363588493,1748777452699,-430.0,0.00018904,2]
[363588494,1748777452709,-430.0,0.00018904,2]
[363588495,1748777452719,-430.0,0.00018904,2]
[363588496,1748777452729,-430.0,0.00018904,2]
[363588497,1748777452739,-382.75,0.00018904,2]
[363588498,1748777452748,-1240.01,0.00018904,2]
[363588499,1748777452758,-430.0,0.00018904,2]
[363588500,1748777452767,-492.83,0.00018904,2]
[363588501,1748777452777,-430.0,0.00018904,2]
[363588502,1748777452787,-3331.44,0.00018904,2]
[363588503,1748777452797,-430.0,0.00018904,2]
[363588504,1748777452807,-2976.59,0.00018904,2]